fUST/lending_fUST_20260228
["ID","MTS","AMOUNT","RATE_DAILY","PERIOD"]
[406891814,1772267457743,-500.0,0.00014246,2]
[406891816,1772267457753,-500.0,0.00014246,2]
[406891818,1772267457762,-603.96,0.00014246,2]
[406891819,1772267457771,-500.0,0.00014246,2]
[406891822,1772267457781,-500.58,0.00014246,2]
[406891824,1772267457790,-500.0,0.00014246,2]
[406891826,1772267457801,-2062.12,0.00014246,2]
[406891828,1772267457810,-719.5,0.00014246,2]
[406891830,1772267457819,-500.0,0.00014246,2]
[406891832,1772267457828,-525.56,0.00014246,2]
[406891834,1772267457838,-500.0,0.00014246,2]
[406891836,1772267457847,-500.0,0.00014246,2]
[406891838,1772267457856,-500.0,0.00014246,2]
[406891840,1772267457866,-500.0,0.00014246,2]
[406891842,1772267457875,-546.89,0.00014246,2]
[406891844,1772267457884,-1727.31,0.00014246,2]
[406891846,1772267457893,-500.0,0.00014246,2]
[406891848,1772267457902,-500.0,0.00014246,2]
[406891850,1772267457911,-514.02,0.00014246,2]
[406891852,1772267457920,-500.0,0.00014246,2]
[406891854,1772267457929,-500.0,0.00014246,2]
[406891856,1772267457938,-500.0,0.00014246,2]
[406891858,1772267457948,-500.0,0.00014246,2]
[406891860,1772267457958,-860.84,0.00014246,2]
[406891862,1772267457968,-500.0,0.00014246,2]
[406891864,1772267457977,-955.26,0.00014246,2]
[406891866,1772267457987,-500.0,0.00014246,2]
[406891868,1772267457996,-725.73,0.00014246,2]
[406891870,1772267458005,-500.0,0.00014246,2]
[406891872,1772267458014,-914.38,0.00014246,2]
[406891874,1772267458023,-1116.21,0.00014246,2]
[406891876,1772267458032,-500.0,0.00014246,2]
[406891878,1772267458041,-500.0,0.00014246,2]
[406891880,1772267458051,-500.0,0.00014246,2]
[406891882,1772267458060,-500.0,0.00014246,2]
[406891884,1772267458069,-318.99186125,0.00014246,2]
[406891886,1772267458078,-579.95,0.00014246,2]
[406891888,1772267458088,-500.0,0.00014246,2]
[406891890,1772267458097,-500.0,0.00014246,2]
[406891892,1772267458106,-1326.22,0.00014246,2]
[406891894,1772267458115,-500.0,0.00014246,2]
[406891896,1772267458126,-1036.26,0.00014246,2]
[406891898,1772267458135,-575.61279803,0.00014246,2]
[406891900,1772267458147,-500.0,0.00014246,2]
[406891902,1772267458156,-500.0,0.00014246,2]
[406891904,1772267458167,-936.85,0.00014246,2]
[406891905,1772267458176,-500.0,0.00014246,2]
[406891907,1772267458186,-500.0,0.00014246,2]
[406891909,1772267458196,-500.0,0.00014246,2]
[406891911,1772267458207,-500.0,0.00014246,2]
[406891913,1772267458217,-547.18,0.00014246,2]
[406891915,1772267458226,-500.0,0.00014246,2]
[406891917,1772267458235,-1250.68,0.00014246,2]
[406891919,1772267458244,-582.85167688,0.00014246,2]
[406891921,1772267458253,-500.0,0.00014246,2]
[406891923,1772267458262,-1196.3,0.00014246,2]
[406891925,1772267458271,-1024.08,0.00014246,2]
[406891927,1772267458280,-499.98,0.00014246,2]
[406891929,1772267458289,-500.0,0.00014246,2]
[406891931,1772267458298,-552.80151937,0.00014246,2]
[406891933,1772267458308,-898.6,0.00014246,2]
[406891935,1772267458317,-500.0,0.00014246,2]
[406891937,1772267458326,-500.0,0.00014246,2]
[406891939,1772267458335,-609.4,0.00014246,2]
[406891941,1772267458344,-500.0,0.00014246,2]
[406891943,1772267458354,-500.0,0.00014246,2]
[406891944,1772267458363,-500.0,0.00014246,2]
[406891946,1772267458373,-151.0,0.00014246,2]
[406891948,1772267458382,-1312.05,0.00014246,2]
[406891950,1772267458392,-500.0,0.00014246,2]
[406891952,1772267458401,-937.86,0.00014246,2]
[406891954,1772267458411,-651.8,0.00014246,2]
[406891956,1772267458420,-500.0,0.00014246,2]
[406891958,1772267458429,-500.0,0.00014246,2]
[406891960,1772267458438,-500.0,0.00014246,2]
[406891962,1772267458447,-550.81917397,0.00014246,2]
[406891964,1772267458457,-517.11,0.00014246,2]
[406891966,1772267458467,-500.0,0.00014246,2]
[406891968,1772267458477,-500.0,0.00014246,2]
[406891970,1772267458486,-500.0,0.00014246,2]
[406891972,1772267458496,-500.0,0.00014246,2]
[406891974,1772267458505,-1446.65,0.00014246,2]
[406891976,1772267458514,-500.0,0.00014246,2]
[406891977,1772267458524,-1733.53,0.00014246,2]
[406891979,1772267458534,-500.0,0.00014246,2]
[406891982,1772267458544,-1436.12,0.00014246,2]
[406891983,1772267458553,-315.94603192,0.00014246,2]
[406891985,1772267458563,-500.0,0.00014246,2]
[406891988,1772267458573,-500.0,0.00014246,2]
[406891990,1772267458582,-685.31,0.00014246,2]
[406891991,1772267458591,-580.66,0.00014246,2]
[406891993,1772267458600,-571.4,0.00014246,2]
[406891995,1772267458610,-500.0,0.00014246,2]
[406891998,1772267458619,-864.92,0.00014246,2]
[406891999,1772267458629,-846.6,0.00014246,2]
[406892018,1772267458791,-1593.78,0.00014246,2]
[406892020,1772267458802,-510.53,0.00014246,2]
[406892022,1772267458813,-750.44,0.00014246,2]
[406892024,1772267458823,-531.0834252,0.00014246,2]
[406892026,1772267458832,-500.0,0.00014246,2]
[406892028,1772267458842,-500.0,0.00014246,2]
[406892030,1772267458852,-1521.42,0.00014246,2]
[406892032,1772267458861,-156.2224273,0.00014246,2]
[406892034,1772267458871,-1247.19,0.00014246,2]
[406892036,1772267458881,-705.82,0.00014246,2]
[406892038,1772267458891,-500.0,0.00014246,2]
[406892040,1772267458900,-529.62,0.00014246,2]
[406892042,1772267458909,-500.0,0.00014246,2]
[406892044,1772267458919,-500.0,0.00014246,2]
[406892046,1772267458928,-500.0,0.00014246,2]
[406892048,1772267458938,-500.0,0.00014246,2]
[406892050,1772267458947,-500.0,0.00014246,2]
[406892052,1772267458956,-745.32,0.00014246,2]
[406892054,1772267458968,-1605.01,0.00014246,2]
[406892056,1772267458978,-500.0,0.00014246,2]
[406892057,1772267458987,-500.0,0.00014246,2]
[406892060,1772267458996,-500.0,0.00014246,2]
[406892062,1772267459006,-1610.8,0.00014246,2]
[406892064,1772267459015,-500.0,0.00014246,2]
[406892066,1772267459024,-1001.72,0.00014246,2]
[406892067,1772267459034,-1059.56,0.00014246,2]
[406892069,1772267459043,-627.88,0.00014246,2]
[406892071,1772267459052,-500.0,0.00014246,2]
[406892074,1772267459062,-917.08,0.00014246,2]
[406892076,1772267459072,-500.0,0.00014246,2]
[406892077,1772267459081,-500.0,0.00014246,2]
[406892079,1772267459092,-500.0,0.00014246,2]
[406892082,1772267459109,-529.27,0.00014246,2]
[406892083,1772267459129,-927.57,0.00014246,2]
[406892086,1772267459140,-650.87,0.00014246,2]
[406892088,1772267459149,-661.99,0.00014246,2]
[406892089,1772267459159,-4106.48,0.00014246,2]
[406892091,1772267459168,-500.0,0.00014246,2]
[406892092,1772267459178,-500.0,0.00014246,2]
[406892093,1772267459187,-818.16,0.00014246,2]
[406892094,1772267459198,-500.0,0.00014246,2]
[406892095,1772267459207,-1219.63,0.00014246,2]
[406892096,1772267459217,-602.25889058,0.00014246,2]
[406892097,1772267459227,-500.0,0.00014246,2]
[406892098,1772267459242,-564.11,0.00014246,2]
[406892099,1772267459262,-500.0,0.00014246,2]
[406892100,1772267459273,-500.0,0.00014246,2]
[406892101,1772267459282,-500.0,0.00014246,2]
[406892102,1772267459293,-500.0,0.00014246,2]
[406892103,1772267459303,-500.0,0.00014246,2]
[406892104,1772267459314,-500.0,0.00014246,2]
[406892105,1772267459324,-500.0,0.00014246,2]
[406892106,1772267459334,-557.64054485,0.00014246,2]
[406892107,1772267459344,-500.0,0.00014246,2]
[406892108,1772267459355,-773.68,0.00014246,2]
[406892109,1772267459364,-314.0164832,0.00014246,2]
[406892110,1772267459379,-500.0,0.00014246,2]
[406892111,1772267459400,-1058.67,0.00014246,2]
[406892112,1772267459415,-855.68,0.00014246,2]
[406892114,1772267459426,-544.13,0.00014246,2]
[406892116,1772267459436,-500.0,0.00014246,2]
[406892117,1772267459447,-1354.43,0.00014246,2]
[406892118,1772267459458,-500.0,0.00014246,2]
[406892119,1772267459467,-500.0,0.00014246,2]
[406892120,1772267459477,-947.35,0.00014246,2]
[406892121,1772267459486,-500.0,0.00014246,2]
[406892122,1772267459496,-500.0,0.00014246,2]
[406892123,1772267459505,-577.2,0.00014246,2]
[406892124,1772267459514,-143.22337702,0.00014246,2]
[406892133,1772267459977,-474.65662298,0.00014246,2]
[406892134,1772267459987,-1264.55,0.00014246,2]
[406892135,1772267459996,-609.45,0.00014246,2]
[406892136,1772267460006,-500.0,0.00014246,2]
[406892137,1772267460015,-500.0,0.00014246,2]
[406892138,1772267460025,-787.95,0.00014246,2]
[406892139,1772267460036,-1665.88,0.00014246,2]
[406892140,1772267460046,-571.43,0.00014246,2]
[406892141,1772267460055,-500.0,0.00014246,2]
[406892142,1772267460065,-500.0,0.00014246,2]
[406892143,1772267460074,-7573.22,0.00014246,2]
[406892144,1772267460084,-554.61,0.00014246,2]
[406892145,1772267460094,-500.0,0.00014246,2]
[406892146,1772267460103,-500.0,0.00014246,2]
[406892147,1772267460113,-500.0,0.00014246,2]
[406892148,1772267460123,-500.0,0.00014246,2]
[406892149,1772267460132,-500.0,0.00014246,2]
[406892150,1772267460143,-1743.64,0.00014246,2]
[406892151,1772267460153,-2006.98,0.00014246,2]
[406892152,1772267460162,-2108.79,0.00014246,2]
[406892153,1772267460172,-647.16,0.00014246,2]
[406892154,1772267460181,-500.0,0.00014246,2]
[406892155,1772267460190,-839.36,0.00014246,2]
[406892156,1772267460201,-878.12,0.00014246,2]
[406892157,1772267460211,-7180.71,0.00014246,2]
[406892158,1772267460220,-784.54,0.00014246,2]
[406892159,1772267460230,-517.44578125,0.00014246,2]
[406892160,1772267460239,-696.62,0.00014246,2]
[406892161,1772267460248,-854.66,0.00014246,2]
[406892162,1772267460258,-500.0,0.00014246,2]
[406892163,1772267460267,-1726.59,0.00014246,2]
[406892164,1772267460277,-500.0,0.00014246,2]
[406892165,1772267460286,-500.0,0.00014246,2]
[406892166,1772267460295,-500.0,0.00014246,2]
[406892167,1772267460305,-1075.35,0.00014246,2]
[406892168,1772267460314,-5780.22,0.00014246,2]
[406892169,1772267460324,-1052.35,0.00014246,2]
[406892170,1772267460334,-500.0,0.00014246,2]
[406892171,1772267460344,-1604.1,0.00014246,2]
[406892172,1772267460353,-500.0,0.00014246,2]
[406892173,1772267460362,-617.93,0.00014246,2]
[406892174,1772267460372,-1438.35,0.00014246,2]
[406892175,1772267460382,-500.0,0.00014246,2]
[406892176,1772267460391,-500.0,0.00014246,2]
[406892177,1772267460400,-500.0,0.00014246,2]
[406892178,1772267460410,-1671.97,0.00014246,2]
[406892179,1772267460419,-500.0,0.00014246,2]
[406892180,1772267460429,-500.0,0.00014246,2]
[406892181,1772267460438,-607.11575976,0.00014246,2]
[406892182,1772267460449,-566.35,0.00014246,2]
[406892183,1772267460458,-500.0,0.00014246,2]
[406892184,1772267460467,-695.06,0.00014246,2]
[406892185,1772267460477,-500.0,0.00014246,2]
[406892186,1772267460487,-500.0,0.00014246,2]
[406892187,1772267460496,-692.56,0.00014246,2]
[406892188,1772267460506,-1703.31,0.00014246,2]
[406892189,1772267460516,-1091.8,0.00014246,2]
[406892190,1772267460526,-526.21,0.00014246,2]
[406892191,1772267460535,-1946.78,0.00014246,2]
[406892192,1772267460545,-1093.05,0.00014246,2]
[406892193,1772267460555,-522.9,0.00014246,2]
[406892194,1772267460564,-1010.99,0.00014246,2]
[406892195,1772267460574,-597.64,0.00014246,2]
[406892196,1772267460583,-632.06,0.00014246,2]
[406892197,1772267460598,-500.0,0.00014246,2]
[406892198,1772267460607,-1404.24,0.00014246,2]
[406892199,1772267460617,-500.0,0.00014246,2]
[406892200,1772267460627,-3447.77,0.00014246,2]
[406892201,1772267460636,-622.38051769,0.00014246,2]
[406892202,1772267460647,-592.02,0.00014246,2]
[406892203,1772267460656,-500.0,0.00014246,2]
[406892204,1772267460666,-500.0,0.00014246,2]
[406892205,1772267460676,-500.0,0.00014246,2]
[406892206,1772267460685,-500.0,0.00014246,2]
[406892207,1772267460695,-1639.95,0.00014246,2]
[406892208,1772267460707,-500.0,0.00014246,2]
[406892209,1772267460717,-614.72917883,0.00014246,2]
[406892210,1772267460727,-500.0,0.00014246,2]
[406892211,1772267460736,-766.57,0.00014246,2]
[406892212,1772267460746,-2199.16,0.00014246,2]
[406892213,1772267460755,-500.0,0.00014246,2]
[406892214,1772267460765,-515.11,0.00014246,2]
[406892215,1772267460775,-1033.14,0.00014246,2]
[406892216,1772267460784,-500.0,0.00014246,2]
[406892217,1772267460976,-1309.19,0.00014246,2]
[406892218,1772267460986,-1688.18,0.00014246,2]
[406892219,1772267460996,-3009.71,0.00014246,2]
[406892220,1772267461006,-1567.57,0.00014246,2]
[406892221,1772267461015,-500.0,0.00014246,2]
[406892222,1772267461025,-1039.64,0.00014246,2]
[406892223,1772267461034,-168.59758739,0.00014246,2]
[406892224,1772267461044,-500.0,0.00014246,2]
[406892225,1772267461054,-500.0,0.00014246,2]
[406892226,1772267461063,-500.0,0.00014246,2]
[406892227,1772267461073,-578.85,0.00014246,2]
[406892228,1772267461083,-500.0,0.00014246,2]
[406892229,1772267461092,-500.0,0.00014246,2]
[406892230,1772267461101,-2382.93,0.00014246,2]
[406892231,1772267461111,-2151.2,0.00014246,2]
[406892232,1772267461121,-1096.15,0.00014246,2]
[406892233,1772267461134,-683.72,0.00014246,2]
[406892234,1772267461143,-832.49,0.00014246,2]
[406892235,1772267461152,-692.6,0.00014246,2]
[406892236,1772267461162,-500.0,0.00014246,2]
[406892237,1772267461173,-500.0,0.00014246,2]
[406892238,1772267461183,-3399.35,0.00014246,2]
[406892239,1772267461191,-560.74761967,0.00014246,2]
[406892240,1772267461204,-865.62,0.00014246,2]
[406892241,1772267461214,-929.25,0.00014246,2]
[406892242,1772267461223,-500.0,0.00014246,2]
[406892243,1772267461232,-856.18,0.00014246,2]
[406892244,1772267461241,-1271.22,0.00014246,2]
[406892245,1772267461251,-1063.54,0.00014246,2]
[406892246,1772267461260,-1000.0,0.00014246,2]
[406892247,1772267461269,-500.0,0.00014246,2]
[406892248,1772267461278,-1318.72,0.00014246,2]
[406892249,1772267461287,-705.79,0.00014246,2]
[406892250,1772267461296,-2424.89,0.00014246,2]
[406892251,1772267461306,-1446.29,0.00014246,2]
[406892252,1772267461315,-500.0,0.00014246,2]
[406892253,1772267461324,-2361.52,0.00014246,2]
[406892254,1772267461334,-500.0,0.00014246,2]
[406892255,1772267461343,-500.0,0.00014246,2]
[406892256,1772267461353,-4592.95,0.00014246,2]
[406892257,1772267461362,-2215.2,0.00014246,2]
[406892258,1772267461372,-596.35705105,0.00014246,2]
[406892259,1772267461381,-1435.8,0.00014246,2]
[406892260,1772267461391,-1576.84,0.00014246,2]
[406892261,1772267461400,-2561.33,0.00014246,2]
[406892262,1772267461409,-500.0,0.00014246,2]
[406892263,1772267461418,-1085.51,0.00014246,2]
[406892264,1772267461428,-500.0,0.00014246,2]
[406892265,1772267461437,-500.0,0.00014246,2]
[406892266,1772267461446,-500.0,0.00014246,2]
[406892267,1772267461456,-717.42,0.00014246,2]
[406892268,1772267461465,-500.0,0.00014246,2]
[406892269,1772267461474,-1108.2,0.00014246,2]
[406892270,1772267461484,-500.0,0.00014246,2]
[406892271,1772267461494,-500.0,0.00014246,2]
[406892272,1772267461503,-500.0,0.00014246,2]
[406892273,1772267461512,-500.0,0.00014246,2]
[406892274,1772267461522,-3100.42,0.00014246,2]
[406892275,1772267461532,-500.0,0.00014246,2]
[406892276,1772267461542,-1341.93,0.00014246,2]
[406892277,1772267461551,-1305.67,0.00014246,2]
[406892278,1772267461560,-481.23551478,0.00014246,2]
[406892279,1772267461570,-500.0,0.00014246,2]
[406892280,1772267461579,-334.39398641,0.00014246,2]
[406892281,1772267461590,-3197.66,0.00014246,2]
[406892282,1772267461600,-500.0,0.00014246,2]
[406892283,1772267461609,-1472.57,0.00014246,2]
[406892284,1772267461619,-561.98,0.00014246,2]
[406892285,1772267461629,-500.0,0.00014246,2]
[406892286,1772267461639,-615.34,0.00014246,2]
[406892287,1772267461649,-699.96,0.00014246,2]
[406892288,1772267461658,-500.0,0.00014246,2]
[406892289,1772267461668,-500.0,0.00014246,2]
[406892290,1772267461677,-500.0,0.00014246,2]
[406892291,1772267461688,-500.0,0.00014246,2]
[406892292,1772267461698,-1020.13,0.00014246,2]
[406892293,1772267461707,-500.0,0.00014246,2]
[406892294,1772267461717,-500.0,0.00014246,2]
[406892295,1772267461726,-500.0,0.00014246,2]
[406892296,1772267461735,-500.0,0.00014246,2]
[406892297,1772267461746,-500.0,0.00014246,2]
[406892298,1772267461755,-500.0,0.00014246,2]
[406892299,1772267461765,-500.0,0.00014246,2]
[406892300,1772267461774,-596.63,0.00014246,2]
[406892301,1772267461783,-1033.36,0.00014246,2]
[406892302,1772267461792,-500.0,0.00014246,2]
[406892303,1772267461801,-2312.35,0.00014246,2]
[406892304,1772267461811,-955.01,0.00014246,2]
[406892305,1772267461820,-806.51,0.00014246,2]
[406892306,1772267461828,-500.0,0.00014246,2]
[406892307,1772267461838,-1522.66,0.00014246,2]
[406892308,1772267461847,-500.0,0.00014246,2]
[406892309,1772267461856,-500.0,0.00014246,2]
[406892310,1772267461865,-867.0,0.00014246,2]
[406892311,1772267461874,-500.0,0.00014246,2]
[406892312,1772267461883,-7146.16,0.00014246,2]
[406892313,1772267461892,-500.0,0.00014246,2]
[406892314,1772267461901,-500.0,0.00014246,2]
[406892315,1772267461911,-500.0,0.00014246,2]
[406892316,1772267461920,-1028.35,0.00014246,2]
[406892317,1772267461929,-500.0,0.00014246,2]
[406892318,1772267461938,-1008.96,0.00014246,2]
[406892319,1772267461948,-500.0,0.00014246,2]
[406892320,1772267461958,-500.0,0.00014246,2]
[406892321,1772267461967,-1352.59,0.00014246,2]
[406892322,1772267461977,-506.03,0.00014246,2]
[406892323,1772267461986,-500.0,0.00014246,2]
[406892324,1772267461996,-500.0,0.00014246,2]
[406892325,1772267462005,-500.0,0.00014246,2]
[406892326,1772267462015,-500.0,0.00014246,2]
[406892327,1772267462025,-500.0,0.00014246,2]
[406892328,1772267462035,-500.0,0.00014246,2]
[406892329,1772267462045,-500.0,0.00014246,2]
[406892330,1772267462054,-764.41,0.00014246,2]
[406892331,1772267462064,-500.0,0.00014246,2]
[406892332,1772267462073,-500.0,0.00014246,2]
[406892333,1772267462082,-1761.81,0.00014246,2]
[406892334,1772267462092,-2215.04,0.00014246,2]
[406892335,1772267462101,-517.59,0.00014246,2]
[406892336,1772267462111,-500.0,0.00014246,2]
[406892337,1772267462121,-517.41,0.00014246,2]
[406892338,1772267462131,-500.0,0.00014246,2]
[406892339,1772267462142,-963.32,0.00014246,2]
[406892340,1772267462152,-700.0,0.00014246,2]
[406892341,1772267462161,-500.0,0.00014246,2]
[406892342,1772267462173,-500.0,0.00014246,2]
[406892343,1772267462182,-899.12,0.00014246,2]
[406892344,1772267462191,-500.0,0.00014246,2]
[406892345,1772267462201,-1300.35,0.00014246,2]
[406892346,1772267462211,-5319.48,0.00014246,2]
[406892347,1772267462221,-1252.77,0.00014246,2]
[406892348,1772267462231,-587.74,0.00014246,2]
[406892349,1772267462240,-1166.63,0.00014246,2]
[406892350,1772267462249,-500.0,0.00014246,2]
[406892351,1772267462258,-899.07,0.00014246,2]
[406892352,1772267462268,-2895.24,0.00014246,2]
[406892353,1772267462277,-500.0,0.00014246,2]
[406892354,1772267462287,-1068.48,0.00014246,2]
[406892355,1772267462297,-968.49,0.00014246,2]
[406892356,1772267462307,-500.0,0.00014246,2]
[406892357,1772267462316,-151.0,0.00014246,2]
[406892358,1772267462325,-151.0,0.00014246,2]
[406892359,1772267462335,-2416.57,0.00014246,2]
[406892360,1772267462346,-1587.58,0.00014246,2]
[406892361,1772267462355,-647.96,0.00014246,2]
[406892362,1772267462365,-500.0,0.00014246,2]
[406892363,1772267462374,-8070.28,0.00014246,2]
[406892364,1772267462384,-731.15,0.00014246,2]
[406892365,1772267462393,-500.0,0.00014246,2]
[406892366,1772267462403,-500.0,0.00014246,2]
[406892367,1772267462412,-500.0,0.00014246,2]
[406892368,1772267462422,-500.0,0.00014246,2]
[406892369,1772267462432,-634.49494791,0.00014246,2]
[406892370,1772267462442,-500.0,0.00014246,2]
[406892371,1772267462452,-500.0,0.00014246,2]
[406892372,1772267462462,-1997.06,0.00014246,2]
[406892373,1772267462472,-3186.98,0.00014246,2]
[406892374,1772267462481,-500.0,0.00014246,2]
[406892375,1772267462491,-3896.0,0.00014246,2]
[406892376,1772267462501,-500.0,0.00014246,2]
[406892377,1772267462510,-527.94,0.00014246,2]
[406892378,1772267462520,-989.6,0.00014246,2]
[406892379,1772267462530,-7025.66,0.00014246,2]
[406892380,1772267462539,-500.0,0.00014246,2]
[406892381,1772267462550,-682.38,0.00014246,2]
[406892382,1772267462560,-500.0,0.00014246,2]
[406892383,1772267462570,-659.28,0.00014246,2]
[406892384,1772267462579,-728.78,0.00014246,2]
[406892385,1772267462589,-898.93,0.00014246,2]
[406892386,1772267462599,-793.11,0.00014246,2]
[406892387,1772267462608,-1706.3,0.00014246,2]
[406892388,1772267462617,-659.85,0.00014246,2]
[406892389,1772267462628,-500.0,0.00014246,2]
[406892390,1772267462637,-1134.79,0.00014246,2]
[406892391,1772267462647,-500.0,0.00014246,2]
[406892392,1772267462656,-500.0,0.00014246,2]
[406892393,1772267462666,-11125.25,0.00014246,2]
[406892394,1772267462675,-7153.51,0.00014246,2]
[406892395,1772267462684,-648.35,0.00014246,2]
[406892396,1772267462694,-1970.56,0.00014246,2]
[406892397,1772267462703,-5078.3,0.00014246,2]
[406892398,1772267462712,-683.43,0.00014246,2]
[406892399,1772267462722,-2723.16,0.00014246,2]
[406892400,1772267462731,-500.0,0.00014246,2]
[406892401,1772267462741,-500.0,0.00014246,2]
[406892402,1772267462751,-4724.28,0.00014246,2]
[406892403,1772267462762,-500.0,0.00014246,2]
[406892404,1772267462772,-500.0,0.00014246,2]
[406892405,1772267462781,-739.63,0.00014246,2]
[406892406,1772267462791,-500.0,0.00014246,2]
[406892407,1772267462801,-500.0,0.00014246,2]
[406892408,1772267462811,-500.0,0.00014246,2]
[406892409,1772267462823,-500.0,0.00014246,2]
[406892410,1772267462832,-500.0,0.00014246,2]
[406892411,1772267462842,-4297.64,0.00014246,2]
[406892412,1772267462853,-737.38,0.00014246,2]
[406892413,1772267462863,-2549.64,0.00014246,2]
[406892414,1772267462872,-500.0,0.00014246,2]
[406892415,1772267462882,-500.0,0.00014246,2]
[406892416,1772267462891,-1171.08,0.00014246,2]
[406892417,1772267462901,-2640.18,0.00014246,2]
[406892418,1772267462911,-7472.22,0.00014246,2]
[406892419,1772267462921,-500.0,0.00014246,2]
[406892420,1772267462930,-530.37,0.00014246,2]
[406892421,1772267462939,-1765.65,0.00014246,2]
[406892422,1772267462950,-500.0,0.00014246,2]
[406892423,1772267462959,-500.0,0.00014246,2]
[406892424,1772267462969,-500.0,0.00014246,2]
[406892425,1772267462979,-1444.95,0.00014246,2]
[406892426,1772267462988,-4088.91,0.00014246,2]
[406892427,1772267462998,-2445.15,0.00014246,2]
[406892428,1772267463007,-2774.65,0.00014246,2]
[406892429,1772267463017,-284.60244944,0.00014246,2]
[406892430,1772267463027,-500.0,0.00014246,2]
[406892431,1772267463036,-3783.55,0.00014246,2]
[406892432,1772267463045,-500.0,0.00014246,2]
[406892433,1772267463055,-500.0,0.00014246,2]
[406892434,1772267463065,-1333.68,0.00014246,2]
[406892435,1772267463074,-14153.91,0.00014246,2]
[406892436,1772267463083,-500.0,0.00014246,2]
[406892437,1772267463093,-500.0,0.00014246,2]
[406892438,1772267463102,-500.0,0.00014246,2]
[406892439,1772267463111,-500.0,0.00014246,2]
[406892440,1772267463121,-3218.57,0.00014246,2]
[406892441,1772267463134,-500.0,0.00014246,2]
[406892442,1772267463143,-500.0,0.00014246,2]
[406892443,1772267463152,-2092.55,0.00014246,2]
[406892444,1772267463161,-2893.22,0.00014246,2]
[406892445,1772267463172,-2259.28,0.00014246,2]
[406892446,1772267463182,-500.0,0.00014246,2]
[406892447,1772267463191,-1798.11,0.00014246,2]
[406892448,1772267463204,-500.0,0.00014246,2]
[406892449,1772267463214,-500.0,0.00014246,2]
[406892450,1772267463223,-540.91,0.00014246,2]
[406892451,1772267463232,-412.23989796,0.00014246,2]
[406892452,1772267463242,-500.0,0.00014246,2]
[406892453,1772267463251,-500.0,0.00014246,2]
[406892454,1772267463260,-500.0,0.00014246,2]
[406892455,1772267463270,-16752.77,0.00014246,2]
[406892456,1772267463279,-500.0,0.00014246,2]
[406892457,1772267463289,-1638.09,0.00014246,2]
[406892458,1772267463298,-500.0,0.00014246,2]
[406892459,1772267463461,-4470.34,0.00014246,2]
[406892460,1772267463471,-526.47,0.00014246,2]
[406892461,1772267463480,-500.97,0.00014246,2]
[406892462,1772267463488,-500.0,0.00014246,2]
[406892463,1772267463498,-500.0,0.00014246,2]
[406892464,1772267463507,-500.0,0.00014246,2]
[406892465,1772267463517,-2160.15,0.00014246,2]
[406892466,1772267463526,-500.0,0.00014246,2]
[406892467,1772267463536,-500.0,0.00014246,2]
[406892468,1772267463546,-587.54,0.00014246,2]